bitfinex/quotes_ETHUSD_20240824
["timestamp","ask_amount","ask_price","bid_price","bid_amount"]
[1724466061188,0.4197245,2762.8,2762.4,7.23987]
[1724466061357,0.4197245,2762.8,2762.4,7.23989]
[1724466061588,0.4197245,2762.8,2762.4,3.61993]
[1724466062409,0.4197245,2762.8,2762.5,3.6199]
[1724466062893,0.07172084,2762.8,2762.5,3.6199]
[1724466065364,0.07172084,2762.8,2762.6,3.61975]
[1724466067449,0.07172084,2762.8,2762.6,3.61969]
[1724466067656,0.07172084,2762.8,2762.7,3.61964]
[1724466068454,0.07172084,2762.8,2762.7,6.10014]
[1724466068660,1.51156129,2763.0,2762.7,6.10014]
[1724466068843,1.51156129,2763.1,2762.7,6.10014]
[1724466069628,0.07204396,2763.0,2762.7,6.10014]
[1724466070152,1.51156129,2763.2,2762.7,6.10014]
[1724466070329,0.0720149,2762.9,2762.7,6.10014]
[1724466070531,1.51156129,2763.2,2762.7,2.4805]
[1724466070735,0.07198584,2762.8,2762.6,3.61969]
[1724466070932,2.4773,2763.0,2762.6,3.61969]
[1724466071480,0.0721862,2762.9,2762.6,3.61969]
[1724466072155,1.51156129,2763.1,2762.6,3.61969]
[1724466072467,2.46200947,2763.1,2762.6,3.61969]
[1724466072666,0.07221526,2763.0,2762.6,3.61969]
[1724466072873,0.07221526,2763.0,2762.4,9.72039]
[1724466073079,1.58377655,2763.0,2762.4,3.61992]
[1724466073230,1.51156129,2762.9,2762.4,3.61992]
[1724466073536,0.07177056,2762.8,2762.4,3.61992]
[1724466073743,2.92606599,2763.0,2762.4,3.61992]
[1724466073941,0.07174149,2762.7,2762.4,3.61992]
[1724466074142,2.92606599,2763.0,2762.4,3.61992]
[1724466074351,0.07171243,2762.6,2762.4,3.61992]
[1724466074552,6.54531599,2763.0,2762.4,3.61992]
[1724466075082,0.07175202,2762.9,2762.4,3.61992]
[1724466077328,0.07175202,2762.9,2762.4,7.23988]
[1724466077528,0.07175202,2762.9,2762.5,3.6199]
[1724466078383,0.07175202,2762.9,2762.4,3.61992]
[1724466078582,2.4915,2762.8,2762.4,3.61992]
[1724466078787,0.07175202,2762.9,2762.6,3.61977]
[1724466078942,0.07165586,2762.7,2762.6,3.61977]
[1724466079283,0.0716511,2762.7,2762.6,3.61977]
[1724466079635,4.00306129,2763.1,2762.6,3.61977]
[1724466079977,1.76845744,2763.0,2762.4,3.61992]
[1724466080537,1.76845744,2763.0,2762.6,3.61974]
[1724466081980,0.0717478,2763.0,2762.6,3.61974]
[1724466083044,1.58330909,2763.0,2762.6,3.61974]
[1724466083270,0.0717478,2763.0,2762.6,3.61974]
[1724466083582,1.58330909,2763.0,2762.6,3.61974]
[1724466086984,1.58330909,2763.0,2762.6,3.61969]
[1724466087477,1.51156129,2762.9,2762.6,3.61969]
[1724466087652,1.58329906,2762.9,2762.6,3.61969]
[1724466088538,1.58329906,2762.9,2762.7,3.61961]
[1724466088856,1.58329906,2762.9,2762.6,3.61968]
[1724466091085,1.58329906,2762.9,2762.6,7.23938]
[1724466091281,1.58329906,2762.9,2762.6,3.61968]
[1724466092277,1.58329906,2762.9,2762.7,3.61955]
[1724466092478,1.51156129,2762.8,2762.7,3.61955]
[1724466092856,1.58331282,2762.8,2762.7,3.61955]
[1724466096895,1.58331282,2762.8,2762.5,5.93278]
[1724466097196,1.58331282,2762.8,2762.6,3.61974]
[1724466099016,1.58331282,2762.8,2762.4,3.61991]
[1724466099169,1.51156129,2762.7,2762.4,3.61991]
[1724466099377,1.51156129,2762.7,2762.4,7.23983]
[1724466099560,0.07176951,2762.6,2762.4,7.23983]
[1724466101059,0.07176951,2762.6,2762.4,7.23986]
[1724466101259,0.07176951,2762.6,2762.5,3.6199]
[1724466103999,4.39857913,2762.6,2762.2,3.62017]
[1724466104164,1.52077489,2762.4,2762.2,3.62017]
[1724466104592,0.07162997,2762.3,2762.2,3.62017]
[1724466106357,0.07162997,2762.3,2762.0,3.6205]
[1724466106641,1.52077489,2762.1,2761.8,3.6207]
[1724466107266,1.52077489,2762.0,2761.6,3.62099]
[1724466107416,2.49210922,2762.1,2761.8,3.62082]
[1724466107417,1.52077489,2761.9,2761.8,3.62082]
[1724466107612,1.52077489,2762.0,2761.8,3.62082]
[1724466108163,1.52077489,2762.1,2761.8,3.62082]
[1724466108347,1.52077489,2762.1,2761.9,3.62065]
[1724466108522,2.4261,2762.2,2762.0,3.62056]
[1724466108523,1.52077489,2762.2,2762.0,3.62056]
[1724466110218,1.59240486,2762.3,2762.0,3.62056]
[1724466110425,1.52077489,2762.2,2762.0,3.62056]
[1724466110624,2.92927089,2762.3,2762.0,3.62056]
[1724466111623,1.59240486,2762.3,2762.0,3.62056]
[1724466112126,0.07162997,2762.3,2762.0,3.62056]
[1724466113251,0.07162997,2762.3,2761.8,3.62073]
[1724466113664,0.07162997,2762.3,2761.9,3.62061]
[1724466117787,0.07162997,2762.3,2762.0,3.62056]
[1724466119451,11.39687489,2762.5,2762.0,3.62056]
[1724466119679,13.16478816,2762.5,2762.0,3.62056]
[1724466119882,5.14081489,2762.4,2761.8,3.6207]
[1724466120195,3.91537489,2762.3,2761.8,3.6207]
[1724466120574,1.52077489,2762.2,2761.6,7.24207]
[1724466120764,2.3946,2762.0,2761.6,7.24207]
[1724466121667,2.3946,2762.0,2761.6,3.621]
[1724466123124,0.07084894,2761.9,2761.7,3.62091]
[1724466123475,7.53556489,2762.3,2761.7,3.62091]
[1724466123674,0.0708109,2762.2,2761.7,3.62091]
[1724466124120,0.0708109,2762.2,2761.9,3.62068]
[1724466124323,3.91537489,2762.3,2761.8,3.62078]
[1724466124520,0.07078182,2762.1,2761.8,3.62078]
[1724466124815,5.78047308,2762.3,2761.8,7.24153]
[1724466125022,0.07072894,2762.0,2761.9,3.62069]
[1724466125186,1.52077489,2762.3,2761.9,3.62069]
[1724466125397,1.52077489,2762.4,2761.9,3.62069]
[1724466126209,2.90781666,2762.4,2761.8,3.62075]
[1724466126415,3.91537489,2762.3,2761.8,3.62075]
[1724466126718,0.0707871,2762.2,2761.8,3.62075]
[1724466126928,3.91537489,2762.3,2761.8,3.62075]
[1724466127092,0.07075802,2762.1,2761.8,3.62075]
[1724466127424,3.91537489,2762.3,2761.8,3.62075]
[1724466127652,0.07072894,2762.0,2761.8,3.62075]
[1724466127777,3.91537489,2762.3,2761.8,3.62075]
[1724466127980,0.07069986,2761.9,2761.8,3.62075]
[1724466128535,3.91537489,2762.3,2761.8,3.62075]
[1724466128821,2.3946,2762.3,2761.9,3.62065]
[1724466128992,2.3946,2762.3,2761.8,3.62075]
[1724466129883,3.91537489,2762.3,2761.8,3.62075]
[1724466130081,5.60354428,2762.3,2761.8,3.62075]
[1724466130398,0.0707871,2762.2,2761.8,3.62075]
[1724466130829,5.60354428,2762.3,2761.8,3.62075]
[1724466131113,2.3946,2762.0,2761.4,7.24252]
[1724466131311,3.1552602,2762.0,2761.4,7.24252]
[1724466131511,0.07073319,2761.9,2761.4,7.24252]
[1724466131826,0.07073319,2761.9,2761.5,3.62121]
[1724466134129,0.07073319,2761.9,2761.6,3.62107]
[1724466136090,0.07073319,2761.9,2761.6,7.24214]
[1724466136289,5.14115489,2762.2,2761.6,7.24214]
[1724466136290,7.55095489,2762.2,2761.6,7.24214]
[1724466136516,0.07068662,2762.1,2761.6,3.62107]
[1724466136765,0.07068662,2762.1,2761.6,3.62101]
[1724466136933,0.07068662,2762.1,2761.9,3.6206]
[1724466137098,3.93057489,2762.4,2761.9,3.6206]
[1724466137429,2.4098,2762.4,2762.0,3.62046]
[1724466139914,0.07083046,2762.3,2762.0,3.62046]
[1724466140318,3.69102046,2762.3,2761.7,3.62087]
[1724466140550,3.69102046,2762.3,2761.5,3.62114]
[1724466140551,2.3138,2762.1,2761.5,3.62114]
[1724466140750,2.3138,2762.1,2761.5,7.24227]
[1724466140919,0.07082893,2762.0,2761.6,3.62107]
[1724466142146,0.07082893,2762.0,2761.7,3.62094]
[1724466143846,0.07082893,2762.0,2761.7,7.24182]
[1724466144051,2.38462893,2762.0,2761.7,0.724182]
[1724466144371,2.38462893,2762.0,2761.6,3.62099]
[1724466147334,3.90540382,2762.0,2761.6,3.62099]
[1724466148731,3.90540382,2762.0,2761.7,3.62094]
[1724466148932,2.38462893,2762.0,2761.8,3.6208]
[1724466149265,0.07082893,2762.0,2761.7,7.24181]
[1724466149626,0.07082893,2762.0,2761.7,3.62087]
[1724466151220,1.59160382,2762.0,2761.7,3.62087]
[1724466156324,1.59160382,2762.0,2761.7,7.24175]
[1724466156524,1.59160382,2762.0,2761.7,3.62087]
[1724466162041,1.52077489,2761.8,2761.5,3.62111]
[1724466162399,1.59070035,2761.7,2761.5,3.62111]
[1724466162800,1.59070035,2761.7,2761.3,3.62136]
[1724466163033,1.52077489,2761.6,2761.4,3.62132]
[1724466163423,1.52077489,2761.6,2761.1,6.62166]
[1724466163424,2.45546728,2761.5,2761.1,3.62166]
[1724466163629,4.35547871,2761.5,2761.1,3.62166]
[1724466163886,1.52077489,2761.4,2761.1,3.62166]
[1724466164171,0.06972816,2761.3,2761.1,3.62166]
[1724466164925,0.06972816,2761.3,2761.2,3.62161]
[1724466165361,1.52077489,2761.5,2761.2,3.62161]
[1724466165544,0.06965676,2761.3,2761.2,3.62161]
[1724466165740,1.52077489,2761.6,2761.3,3.6214]
[1724466166443,1.52077489,2761.6,2761.4,3.6213]
[1724466167570,1.52077489,2761.6,2761.3,3.62147]
[1724466168306,1.52077489,2761.6,2761.2,3.62151]
[1724466168482,1.52077489,2761.6,2761.2,7.24302]
[1724466168805,1.52077489,2761.6,2761.2,3.62151]
[1724466169370,0.06960541,2761.5,2761.2,3.62151]
[1724466170915,1.5903803,2761.5,2761.2,3.62151]
[1724466171335,0.06960541,2761.5,2761.2,3.62151]
[1724466172425,3.42031505,2761.7,2761.2,3.62151]
[1724466172725,1.52077489,2761.7,2761.2,3.62151]
[1724466172931,1.59040939,2761.6,2761.2,3.62151]
[1724466174602,0.0696345,2761.6,2761.2,3.62151]
[1724466177744,2.4215,2761.5,2761.2,3.62151]
[1724466178044,2.4215,2761.5,2761.0,3.62181]
[1724466178045,2.49116731,2761.5,2761.0,3.62181]
[1724466178257,2.49116731,2761.5,2760.8,9.60183]
[1724466178402,6.11240731,2761.5,2760.9,3.62198]
[1724466179010,6.11240731,2761.5,2760.8,7.239913]
[1724466179011,2.49116731,2761.5,2761.0,3.62185]
[1724466179212,2.49116731,2761.5,2761.0,7.24357]
[1724466179426,2.49116731,2761.5,2761.0,3.62178]
[1724466179842,2.49116731,2761.5,2761.0,7.24357]
[1724466180005,0.06966731,2761.5,2761.1,2.2792]
[1724466180213,7.45,2761.7,2761.1,2.2792]
[1724466180550,7.45,2761.7,2761.4,3.62134]
[1724466180754,0.06962497,2761.6,2761.4,3.62134]
[1724466180949,2.3836,2761.9,2761.4,3.62134]
[1724466181252,0.06959588,2761.5,2761.4,3.62134]
[1724466181427,2.3836,2761.9,2761.4,3.62134]
[1724466181626,0.06959588,2761.5,2761.4,3.62134]
[1724466181828,2.3836,2761.9,2761.4,3.62134]
[1724466182312,0.06968314,2761.8,2761.4,3.62134]
[1724466185514,0.06968314,2761.8,2761.2,7.24305]
[1724466186057,0.06968314,2761.8,2761.3,3.62147]
[1724466186560,2.3836,2761.7,2761.3,3.62147]
[1724466187055,0.06973502,2761.7,2761.3,5.90067]
[1724466187455,3.6207,2761.9,2761.3,5.90067]
[1724466187659,2.3836,2762.0,2761.3,5.90058]
[1724466187956,6.00418,2762.0,2761.4,3.62133]
[1724466188155,5.328248,2761.9,2761.2,3.62152]
[1724466188359,5.328248,2761.9,2761.3,3.62144]
[1724466188718,0.06976411,2761.8,2761.3,3.62144]
[1724466189320,2.3836,2761.7,2761.3,3.62144]
[1724466189620,0.06970594,2761.6,2761.3,3.62144]
[1724466189815,0.06970594,2761.6,2761.1,7.24331]
[1724466190016,0.06970594,2761.6,2761.1,3.62164]
[1724466190421,0.06970594,2761.6,2761.1,3.62163]
[1724466190772,4.29830353,2761.6,2760.9,7.24382]
[1724466191517,4.29830353,2761.6,2761.0,3.62183]
[1724466192062,0.67714353,2761.6,2761.0,3.62183]
[1724466193662,0.06970594,2761.6,2761.4,3.62132]
[1724466194665,0.06970594,2761.6,2761.2,9.52227]
[1724466194837,0.06970594,2761.6,2761.3,3.62145]
[1724466196423,0.06970594,2761.6,2761.2,3.62149]
[1724466196730,1.58850327,2761.6,2761.2,3.62149]
[1724466196995,0.06970594,2761.6,2761.2,3.62149]
[1724466197467,1.58850327,2761.6,2761.2,3.62149]
[1724466197762,2.15621077,2761.6,2761.2,3.62149]
[1724466198529,2.15621077,2761.6,2761.2,7.24302]
[1724466198724,0.63741344,2761.6,2761.3,3.6214]
[1724466199856,0.63741344,2761.6,2761.4,3.62134]
[1724466201522,2.15621077,2761.6,2761.2,3.62149]
[1724466201947,0.63741344,2761.6,2761.2,3.62149]
[1724466202557,2.15621077,2761.6,2761.2,3.62149]
[1724466203186,2.15621077,2761.6,2761.1,2.2746]
[1724466203187,1.51879733,2761.5,2761.1,3.62173]
[1724466203529,1.58841701,2761.5,2761.0,3.62177]
[1724466204272,1.58841701,2761.5,2761.0,7.24356]
[1724466204592,1.58841701,2761.5,2761.1,3.62173]
[1724466204892,1.58841701,2761.5,2761.2,3.62161]
[1724466205094,1.58841701,2761.5,2761.3,3.62138]
[1724466207354,1.51879733,2761.4,2761.3,3.62138]
[1724466208579,1.97076936,2761.5,2761.4,7.2427]
[1724466208580,0.06961968,2761.5,2761.4,7.2427]
[1724466208749,0.06961968,2761.5,2761.4,11.027308]
[1724466208954,7.45,2761.8,2761.4,15.90743027]
[1724466209205,1.51879733,2762.1,2761.4,7.405958]
[1724466209797,1.51879733,2762.1,2761.9,3.62058]
[1724466210150,1.51879733,2762.2,2761.8,2.3982]
[1724466210393,1.51879733,2762.2,2762.0,3.62052]
[1724466211352,1.51879733,2762.2,2761.8,3.62073]
[1724466212595,0.06056963,2762.1,2761.8,3.62073]
[1724466213125,0.06056963,2762.1,2761.9,3.62061]
[1724466213693,1.51879733,2762.4,2761.9,3.62061]
[1724466214832,2.2815,2762.3,2761.9,3.62061]
[1724466215029,3.80029733,2762.3,2761.9,3.62061]
[1724466215179,3.80029733,2762.3,2761.7,3.62091]
[1724466215529,5.09424388,2762.3,2761.7,3.62091]
[1724466216030,5.09424388,2762.3,2761.7,3.62086]
[1724466216333,0.06065117,2762.2,2761.8,3.62081]
[1724466216827,0.06087966,2762.1,2761.8,3.62081]
[1724466217027,3.80029733,2762.3,2761.8,3.62081]
[1724466217194,0.06082673,2762.0,2761.8,3.62081]
[1724466217399,0.06082673,2762.0,2761.7,3.62086]
[1724466217400,3.80029733,2762.3,2761.9,3.62069]
[1724466217738,4.37023988,2762.3,2761.9,3.62069]
[1724466218429,4.37023988,2762.3,2761.7,3.62086]
[1724466219936,4.37023988,2762.3,2761.8,3.62074]
[1724466221279,2.08873988,2762.3,2761.7,3.62086]
[1724466221486,1.51879733,2762.1,2761.7,3.62086]
[1724466221686,2.3414,2761.9,2761.7,3.62086]
[1724466223517,2.3414,2761.9,2761.5,3.62111]
[1724466224007,2.3414,2761.9,2761.6,3.62099]
[1724466224349,2.3414,2761.9,2761.5,3.62111]
[1724466224848,2.3414,2761.9,2761.5,7.24223]
[1724466225019,2.76602171,2761.9,2761.5,7.24223]
[1724466225217,2.76602171,2761.9,2761.5,3.62111]
[1724466225624,2.76602171,2761.9,2761.4,3.62133]
[1724466225829,2.76602171,2761.9,2761.3,3.62144]
[1724466225830,3.86019733,2761.8,2761.3,3.62144]
[1724466226035,4.68933721,2761.8,2761.3,3.62144]
[1724466226818,1.51879733,2761.7,2761.3,3.62144]
[1724466227337,4.68933721,2761.8,2761.3,7.24284]
[1724466227850,4.68933721,2761.8,2761.3,3.6214]
[1724466228049,1.06321442,2761.7,2761.3,3.6214]
[1724466229445,2.58201175,2761.7,2761.3,3.6214]
[1724466231019,1.06321442,2761.7,2761.3,3.6214]
[1724466231222,2.58201175,2761.7,2761.3,3.6214]
[1724466232063,1.06321442,2761.7,2761.3,3.6214]
[1724466232210,2.58201175,2761.7,2761.3,3.6214]
[1724466234630,2.80454437,2761.6,2761.3,3.6214]
[1724466235205,2.80454437,2761.6,2761.1,3.62167]
[1724466235566,4.3233417,2761.6,2761.1,3.62167]
[1724466236256,2.80454437,2761.6,2761.1,3.62167]
[1724466236551,2.80454437,2761.6,2761.1,7.24333]
[1724466236759,0.90075161,2761.5,2761.1,3.62166]
[1724466236964,0.90075161,2761.5,2760.9,3.6219]
[1724466237454,0.90075161,2761.5,2761.1,3.62166]
[1724466238208,2.3414,2761.6,2761.1,5.88166]
[1724466239268,2.3414,2761.6,2761.1,3.62166]
[1724466239442,3.86019733,2761.6,2761.1,7.24333]
[1724466239639,3.86019733,2761.6,2761.1,3.62166]
[1724466240229,1.51879733,2761.5,2761.0,3.62185]
[1724466240426,2.20091708,2761.5,2761.0,3.62185]
[1724466241233,2.20091708,2761.5,2761.1,7.24346]
[1724466241430,2.20091708,2761.5,2760.7,5.2861]
[1724466241726,1.51879733,2761.5,2761.1,3.62163]
[1724466241932,11.31019733,2761.6,2761.1,3.62163]
[1724466242982,11.31019733,2761.6,2761.1,7.24328]
[1724466243357,11.31019733,2761.6,2761.1,3.62163]
[1724466244067,11.31019733,2761.6,2761.1,7.24329]
[1724466244375,1.78922563,2761.5,2761.1,3.62163]
[1724466244584,1.78922563,2761.5,2761.1,7.24329]
[1724466244735,1.78922563,2761.5,2761.1,3.62163]
[1724466244936,1.78922563,2761.5,2761.1,7.24327]
[1724466245144,1.78922563,2761.5,2761.1,3.62163]
[1724466247577,1.3099423,2761.4,2761.0,3.62183]
[1724466247732,2.4917,2761.3,2761.0,3.62183]
[1724466248847,2.4917,2761.3,2760.9,3.62193]
[1724466250178,2.4917,2761.3,2760.7,7.24437]
[1724466250363,2.4917,2761.3,2760.7,3.62218]
[1724466250569,0.89418196,2761.2,2760.7,3.62218]
[1724466250872,0.89418196,2761.2,2760.7,7.24434]
[1724466251080,0.89418196,2761.2,2760.8,3.62212]
[1724466251583,0.89418196,2761.2,2760.7,3.62216]
[1724466251734,2.4917,2761.1,2760.7,3.62216]
[1724466251941,0.3385882,2761.0,2760.5,3.62245]
[1724466252141,0.3385882,2761.0,2760.6,3.62238]
[1724466254186,0.3385882,2761.0,2760.7,3.62226]
[1724466255339,0.3385882,2761.0,2760.3,5.90881]
[1724466255549,2.4587,2760.8,2760.3,3.62271]
[1724466257387,6.08083,2760.8,2760.3,3.62271]
[1724466258181,2.4587,2760.8,2760.3,3.62271]
[1724466261428,6.08084,2760.8,2760.3,3.62271]
[1724466261624,2.4587,2760.8,2760.3,3.62271]
[1724466262321,7.32015744,2760.8,2760.1,3.62294]
[1724466263426,3.6223,2760.7,2760.1,3.62294]
[1724466263715,5.94628,2760.5,2760.0,0.00465191]
[1724466264039,9.56891,2760.5,2760.0,0.00465191]
[1724466264186,6.903171,2760.5,2760.0,0.00465191]
[1724466264713,0.55,2760.4,2760.0,0.00465191]
[1724466265807,2.368,2760.2,2760.0,0.00465191]
[1724466268033,2.918,2760.4,2760.0,0.00465191]
[1724466268235,2.918,2760.4,2760.0,3.62776191]
[1724466268537,2.918,2760.4,2760.0,7.25087191]
[1724466268716,2.918,2760.4,2760.0,3.62776191]
[1724466268918,2.368,2760.6,2760.0,3.62774191]
[1724466269234,2.368,2760.6,2760.2,3.62282]
[1724466269388,7.11491333,2760.6,2760.0,3.62776191]
[1724466269825,0.56798201,2760.5,2760.0,3.62776191]
[1724466270919,4.19054201,2760.5,2760.0,3.62776191]
[1724466271107,2.368,2760.4,2760.0,0.00465191]
[1724466271302,4.8286742,2760.3,2760.0,0.00465191]
[1724466272944,2.368,2760.2,2760.0,0.00465191]
[1724466275122,1.2058542,2760.3,2760.0,0.00465191]
[1724466276847,2.2755,2760.1,2760.0,0.00465191]
[1724466277949,2.3337494,2760.1,2760.0,0.00465191]
[1724466278099,7.22305176,2760.1,2760.0,0.00465191]
[1724466280809,3.60000176,2760.1,2760.0,0.00465191]
[1724466289062,0.0582494,2760.1,2760.0,3.62783191]
[1724466289262,0.56798201,2760.5,2760.1,3.62304]
[1724466289495,0.05805501,2760.4,2760.1,3.62304]
[1724466289803,0.05805501,2760.4,2760.3,3.62277]
[1724466291191,0.05805501,2760.4,2760.2,2.3466]
[1724466291926,0.05805501,2760.4,2760.2,5.9695]
[1724466292315,0.05805501,2760.4,2760.2,2.3466]
[1724466298413,0.05805501,2760.4,2760.0,6.05863191]
[1724466300540,1.57685234,2760.4,2760.0,0.00465191]
[1724466300738,2.15357678,2760.4,2760.0,0.00465191]
[1724466301196,5.77625678,2760.4,2760.0,0.00465191]
[1724466301395,1.51879733,2760.3,2760.0,0.00465191]
[1724466301816,0.05614866,2760.2,2760.0,0.00465191]
[1724466302188,1.51879733,2760.3,2760.0,0.00465191]
[1724466302387,0.05611954,2760.1,2760.0,0.00465191]
[1724466302950,2.57257978,2760.3,2760.0,0.00465191]
[1724466303090,0.05611954,2760.1,2760.0,0.00465191]
[1724466303289,1.51879733,2760.2,2760.0,0.00465191]
[1724466303613,0.05611954,2760.1,2760.0,0.00465191]
[1724466304002,1.51879733,2760.3,2760.0,0.00465191]
[1724466304226,0.05611954,2760.1,2760.0,0.00465191]
[1724466304403,1.51879733,2760.2,2760.0,0.00465191]
[1724466304616,0.05421982,2760.1,2760.0,0.00465191]
[1724466305120,1.51879733,2760.3,2760.0,0.00465191]
[1724466305321,0.05419163,2760.2,2760.0,0.00465191]
[1724466305522,1.51879733,2760.3,2760.0,0.00465191]
[1724466305703,0.05419163,2760.2,2760.0,0.00465191]
[1724466305905,1.51879733,2760.3,2760.0,0.00465191]
[1724466306227,1.57298896,2760.2,2760.0,0.00465191]
[1724466308204,0.05419163,2760.2,2760.0,0.00465191]
[1724466308639,1.51879733,2760.3,2760.0,0.00465191]
[1724466308845,0.05411475,2760.1,2760.0,0.00465191]
[1724466309289,1.51879733,2760.3,2760.0,3.62781191]
[1724466309491,0.05414387,2760.2,2760.0,3.62781191]
[1724466309734,1.51879733,2760.3,2760.0,3.62781191]
[1724466309986,0.05411953,2760.1,2760.0,3.62781191]
[1724466310143,1.51879733,2760.3,2760.0,0.00465191]
[1724466310347,0.05411953,2760.1,2760.0,0.00465191]
[1724466310490,1.86063777,2760.2,2760.0,0.00465191]
[1724466310691,0.05413863,2760.1,2760.0,0.00465191]
[1724466315343,0.05413863,2760.1,2760.0,3.62783191]
[1724466315554,0.05413863,2760.1,2760.0,5.91553191]
[1724466316746,0.05413863,2760.1,2760.0,9.53871191]
[1724466317250,1.51879733,2760.4,2760.2,7.24565]
[1724466317606,0.05420641,2760.3,2760.2,3.62281]
[1724466318575,1.57300374,2760.3,2760.2,3.62281]
[1724466319698,0.05420641,2760.3,2760.2,3.62281]
[1724466320202,1.57300374,2760.3,2760.2,3.62281]
[1724466321192,0.05420641,2760.3,2760.2,3.62281]
[1724466321602,1.57300374,2760.3,2760.2,3.62281]
[1724466322401,0.05420641,2760.3,2760.2,3.62281]
[1724466322704,1.57300374,2760.3,2760.2,3.62281]
[1724466323561,1.57300374,2760.3,2760.0,9.53854191]
[1724466325103,1.57300374,2760.3,2760.0,5.91541191]
[1724466325286,1.97711423,2760.3,2760.0,5.91541191]
[1724466325489,1.97711423,2760.3,2760.0,3.62771191]
[1724466326591,1.51879733,2760.2,2760.0,0.00465191]
[1724466326991,0.0533035,2760.1,2760.0,0.00465191]
[1724466327358,1.57210083,2760.1,2760.0,0.00465191]
[1724466328999,1.95973388,2760.1,2760.0,0.00465191]
[1724466329304,2.34105572,2760.1,2760.0,0.00465191]
[1724466329673,0.44093655,2760.1,2760.0,0.00465191]
[1724466330085,1.00897983,2760.1,2760.0,0.00465191]
[1724466330796,2.909099,2760.1,2760.0,0.00465191]
[1724466330967,2.91018217,2760.1,2760.0,0.00465191]
[1724466331583,5.37198217,2760.1,2760.0,0.00465191]
[1724466331785,20.55161311,2760.1,2760.0,0.00465191]
[1724466332111,10.64382983,2760.1,2760.0,0.00465191]
[1724466332320,14.26687983,2760.1,2760.0,0.00465191]
[1724466335085,2.52174936,2760.1,2760.0,0.00465191]
[1724466335225,0.0533035,2760.1,2760.0,3.62783191]
[1724466335808,1.52029326,2760.3,2760.0,3.62783191]
[1724466336365,0.04947817,2760.2,2760.0,3.62783191]
[1724466336947,1.56982889,2760.1,2760.0,0.00465191]
[1724466337768,1.94971223,2760.1,2760.0,0.00465191]
[1724466337960,0.04953563,2760.1,2760.0,0.00465191]
[1724466338346,1.94971223,2760.1,2760.0,0.00465191]
[1724466338721,0.04953563,2760.1,2760.0,0.00465191]
[1724466338965,1.56988262,2760.1,2760.0,0.00465191]
[1724466339176,1.56987072,2760.1,2760.0,0.00465191]
[1724466340594,0.04953563,2760.1,2760.0,2.48675191]
[1724466340939,1.56987072,2760.1,2760.0,2.48675191]
[1724466343089,1.56987072,2760.1,2760.0,0.00465191]
[1724466343439,0.04953563,2760.1,2760.0,0.00465191]
[1724466343844,1.56987072,2760.1,2760.0,0.00465191]
[1724466344149,0.04953563,2760.1,2760.0,0.00465191]
[1724466345964,1.56987072,2760.1,2760.0,0.00465191]
[1724466353400,0.04953563,2760.1,2760.0,0.00465191]
[1724466355790,1.9504582,2760.1,2760.0,0.00465191]
[1724466356031,0.04953563,2760.1,2760.0,0.00465191]
[1724466357030,1.9504582,2760.1,2760.0,0.00465191]
[1724466357205,2.50778302,2760.1,2760.0,0.00465191]
[1724466357400,1.9504582,2760.1,2760.0,0.00465191]
[1724466357634,1.95055462,2760.1,2760.0,0.00465191]
[1724466358741,4.22258563,2760.1,2760.0,0.00465191]
[1724466358944,8.80450842,2760.1,2760.0,0.00465191]
[1724466359143,11.38907947,2760.1,2760.0,0.00465191]
[1724466359514,17.05050605,2760.1,2760.0,0.00465191]
[1724466359921,17.0504737,2760.1,2760.0,0.00465191]
[1724466360613,18.01212947,2760.1,2760.0,0.00465191]
[1724466361021,14.38907947,2760.1,2760.0,0.00465191]
[1724466367850,7.91532947,2760.1,2760.0,0.00465191]
[1724466369157,8.46532947,2760.1,2760.0,0.00465191]
[1724466372075,12.08837947,2760.1,2760.0,0.00465191]
[1724466373644,14.37647947,2760.1,2760.0,0.00465191]
[1724466375199,17.99952947,2760.1,2760.0,0.00465191]
[1724466379558,14.37647947,2760.1,2760.0,0.00465191]
[1724466383711,16.65443921,2760.1,2760.0,0.00465191]
[1724466384024,14.37647947,2760.1,2760.0,0.00465191]
[1724466385380,16.65432561,2760.1,2760.0,0.00465191]
[1724466385738,14.37647947,2760.1,2760.0,0.00465191]
[1724466387030,16.65423593,2760.1,2760.0,0.00465191]
[1724466387996,14.37647947,2760.1,2760.0,0.00465191]
[1724466395723,17.99952947,2760.1,2760.0,0.00465191]
[1724466397352,20.65805524,2760.1,2760.0,0.00465191]
[1724466398151,17.99952947,2760.1,2760.0,0.00465191]
[1724466398350,20.65805524,2760.1,2760.0,0.00465191]
[1724466400306,17.99952947,2760.1,2760.0,0.00465191]
[1724466400626,20.66067349,2760.1,2760.0,0.00465191]
[1724466401412,17.99952947,2760.1,2760.0,0.00465191]
[1724466404394,21.13991304,2760.1,2760.0,0.00465191]
[1724466406478,17.99952947,2760.1,2760.0,0.00465191]
[1724466408047,21.62257947,2760.1,2760.0,0.00465191]
[1724466408384,25.94794408,2760.1,2760.0,0.00465191]
[1724466408595,22.17038046,2760.1,2760.0,0.00465191]
[1724466411496,25.94516346,2760.1,2760.0,0.00465191]
[1724466412356,27.05649009,2760.1,2760.0,0.00465191]
[1724466413984,25.94516346,2760.1,2760.0,0.00465191]
[1724466414184,27.05651444,2760.1,2760.0,0.00465191]
[1724466414357,25.94516346,2760.1,2760.0,0.00465191]
[1724466414771,27.05654687,2760.1,2760.0,0.00465191]
[1724466417494,27.05653344,2760.1,2760.0,0.00465191]
[1724466418398,27.05653344,2760.1,2760.0,1.91e-06]
[1724466423136,26.28538578,2760.1,2760.0,1.91e-06]
[1724466423287,26.17197834,2760.1,2760.0,1.91e-06]
[1724466423647,27.0565564,2760.1,2760.0,1.91e-06]
[1724466424628,25.94516346,2760.1,2760.0,1.91e-06]
[1724466426341,22.17038046,2760.1,2760.0,1.91e-06]
[1724466428220,19.71248046,2760.1,2760.0,1.91e-06]
[1724466429194,39.16248046,2760.1,2760.0,1.91e-06]
[1724466436060,34.98943046,2760.1,2760.0,1.91e-06]
[1724466436225,38.13200813,2760.1,2760.0,2.45280191]
[1724466436401,34.98943046,2760.1,2760.0,1.91e-06]
[1724466437340,38.61248046,2760.1,2760.0,1.91e-06]
[1724466437546,39.16248046,2760.1,2760.0,1.91e-06]
[1724466439841,35.53943046,2760.1,2760.0,2.32140191]
[1724466440045,38.68255359,2760.1,2760.0,2.32140191]
[1724466440218,35.53943046,2760.1,2760.0,2.32140191]
[1724466440418,35.53943046,2760.1,2760.0,1.91e-06]
[1724466440419,38.68280678,2760.1,2760.0,1.91e-06]